[Event "Titled Tuesday Blitz May 16 Early 2023"]
[White "Jaskolka, Tomasz"]
[Black "Rom, Jasper"]
[WhiteFideId "1170791"]
[BlackFideId "2023733"]
[WhiteElo "2155"]
[BlackElo "2233"]
[Result "0-1"]
[Round "10"]
[TimeControl "180+2"]
[Date "2023.05.16"]
[WhiteClock "0:00:04"]
[BlackClock "0:00:05"]

1. d4 {[%clk 0:02:57]}  d5 {[%clk 0:02:59]} 2. Nc3 {[%clk 0:02:56]}  e6 {[%clk 0:02:59]} 3. Bf4 {[%clk 0:02:57]}  Bd6 {[%clk 0:02:58]} 4. e3 {[%clk 0:02:53]}  Nf6 {[%clk 0:02:58]} 5. Nf3 {[%clk 0:02:48]}  Bxf4 {[%clk 0:02:50]} 6. exf4 {[%clk 0:02:48]}  O-O {[%clk 0:02:50]} 7. Bd3 {[%clk 0:02:48]}  c5 {[%clk 0:02:50]} 8. dxc5 {[%clk 0:02:48]}  Qa5 {[%clk 0:02:48]} 9. Qd2 {[%clk 0:02:48]}  Qxc5 {[%clk 0:02:47]} 10. O-O-O {[%clk 0:02:46]}  Nc6 {[%clk 0:02:47]} 11. g4 {[%clk 0:02:43]}  Nxg4 {[%clk 0:02:37]} 12. Rhg1 {[%clk 0:02:42]}  Nxf2 {[%clk 0:02:33]} 13. Rg2 {[%clk 0:02:32]}  Nxd1 {[%clk 0:02:14]} 14. Qxd1 {[%clk 0:02:13]}  Qe3+ {[%clk 0:02:13]} 15. Kb1 {[%clk 0:02:13]}  Nb4 {[%clk 0:02:12]} 16. Bxh7+ {[%clk 0:02:12]}  Kh8 {[%clk 0:00:17]} 17. Ng5 {[%clk 0:02:12]}  g6 {[%clk 0:00:16]} 18. Nxf7+ {[%clk 0:01:44]}  Rxf7 {[%clk 0:00:13]} 19. Bxg6 {[%clk 0:01:44]}  Rg7 {[%clk 0:00:12]} 20. Qh5+ {[%clk 0:00:36]}  Kg8 {[%clk 0:00:12]} 21. Bf7+ {[%clk 0:00:32]}  Kf8 {[%clk 0:00:12]} 22. Qh8+ {[%clk 0:00:33]}  Ke7 {[%clk 0:00:12]} 23. Qe8+ {[%clk 0:00:33]}  Kf6 {[%clk 0:00:08]} 24. Qd8+ {[%clk 0:00:28]}  Kxf7 {[%clk 0:00:07]} 25. Rxg7+ {[%clk 0:00:18]}  Kxg7 {[%clk 0:00:07]} 26. Qe7+ {[%clk 0:00:18]}  Kg8 {[%clk 0:00:07]} 27. Qe8+ {[%clk 0:00:18]}  Kg7 {[%clk 0:00:07]} 28. Qe7+ {[%clk 0:00:19]}  Kg8 {[%clk 0:00:07]} 29. Qe8+ {[%clk 0:00:19]}  Kh7 {[%clk 0:00:08]} 30. Qf7+ {[%clk 0:00:19]}  Kh8 {[%clk 0:00:08]} 31. Qf8+ {[%clk 0:00:19]}  Kh7 {[%clk 0:00:08]} 32. Qf7+ {[%clk 0:00:19]}  Kh6 {[%clk 0:00:08]} 33. Qf6+ {[%clk 0:00:19]}  Kh7 {[%clk 0:00:08]} 34. a3 {[%clk 0:00:10]}  Qe1+ {[%clk 0:00:05]} 35. Nd1 {[%clk 0:00:04]}  Qxd1# {[%clk 0:00:05]} 0-1


[Site "https://www.chess.com"]

[Event "Titled Tuesday Blitz May 16 Early 2023"]
[White "Potkin, Vladimir"]
[Black "Koutsin, Sergey"]
[WhiteFideId "4131061"]
[BlackFideId "14101483"]
[WhiteElo "2474"]
[BlackElo "2381"]
[Result "1/2-1/2"]
[Round "10"]
[TimeControl "180+2"]
[Date "2023.05.16"]
[WhiteClock "0:00:12"]
[BlackClock "0:00:08"]

1. Nf3 {[%clk 0:03:00]}  Nf6 {[%clk 0:02:59]} 2. c4 {[%clk 0:03:00]}  e6 {[%clk 0:02:58]} 3. Nc3 {[%clk 0:03:00]}  d5 {[%clk 0:02:58]} 4. e3 {[%clk 0:03:00]}  c5 {[%clk 0:02:58]} 5. d4 {[%clk 0:02:59]}  a6 {[%clk 0:02:58]} 6. cxd5 {[%clk 0:02:57]}  exd5 {[%clk 0:02:58]} 7. g3 {[%clk 0:02:58]}  Nc6 {[%clk 0:02:56]} 8. Bg2 {[%clk 0:02:58]}  Bg4 {[%clk 0:02:54]} 9. O-O {[%clk 0:02:52]}  cxd4 {[%clk 0:02:52]} 10. exd4 {[%clk 0:02:52]}  Be7 {[%clk 0:02:53]} 11. h3 {[%clk 0:02:52]}  Bf5 {[%clk 0:02:42]} 12. Ne5 {[%clk 0:02:45]}  O-O {[%clk 0:02:35]} 13. Re1 {[%clk 0:02:45]}  Rc8 {[%clk 0:02:24]} 14. g4 {[%clk 0:02:45]}  Be6 {[%clk 0:02:18]} 15. Be3 {[%clk 0:02:41]}  Nd7 {[%clk 0:02:05]} 16. Nxd5 {[%clk 0:02:31]}  Bxd5 {[%clk 0:02:04]} 17. Bxd5 {[%clk 0:02:32]}  Ndxe5 {[%clk 0:01:47]} 18. dxe5 {[%clk 0:02:33]}  Nxe5 {[%clk 0:01:42]} 19. Bxb7 {[%clk 0:02:33]}  Rb8 {[%clk 0:01:30]} 20. Bxa6 {[%clk 0:02:29]}  Qxd1 {[%clk 0:01:25]} 21. Rexd1 {[%clk 0:02:27]}  Rxb2 {[%clk 0:01:15]} 22. a4 {[%clk 0:02:27]}  h6 {[%clk 0:00:58]} 23. a5 {[%clk 0:02:13]}  Bg5 {[%clk 0:00:50]} 24. Bc5 {[%clk 0:02:07]}  Ra8 {[%clk 0:00:43]} 25. Bf1 {[%clk 0:02:00]}  Nf3+ {[%clk 0:00:33]} 26. Kg2 {[%clk 0:01:59]}  Nd2 {[%clk 0:00:33]} 27. a6 {[%clk 0:01:42]}  Rc2 {[%clk 0:00:24]} 28. Bb6 {[%clk 0:01:28]}  Rc6 {[%clk 0:00:20]} 29. Bd4 {[%clk 0:01:02]}  Nxf1 {[%clk 0:00:20]} 30. h4 {[%clk 0:00:15]}  Bf4 {[%clk 0:00:14]} 31. Kxf1 {[%clk 0:00:11]}  Rcxa6 {[%clk 0:00:14]} 32. Rxa6 {[%clk 0:00:11]}  Rxa6 {[%clk 0:00:08]} 33. Ke2 {[%clk 0:00:12]} 1/2-1/2


[Site "https://www.chess.com"]

[Event "Titled Tuesday Blitz May 16 Early 2023"]
[White "Panda Sambit"]
[Black "Dixit, Nikhil"]
[WhiteFideId "25091794"]
[BlackFideId "5059534"]
[WhiteElo "2272"]
[BlackElo "2207"]
[Result "0-1"]
[Round "10"]
[TimeControl "180+2"]
[Date "2023.05.16"]
[WhiteClock "0:00:16"]
[BlackClock "0:00:41"]

1. Nf3 {[%clk 0:02:53]}  c5 {[%clk 0:02:58]} 2. c4 {[%clk 0:02:51]}  Nc6 {[%clk 0:02:57]} 3. Nc3 {[%clk 0:02:44]}  Nf6 {[%clk 0:00:57]} 4. e3 {[%clk 0:02:09]}  g6 {[%clk 0:00:56]} 5. d4 {[%clk 0:02:09]}  cxd4 {[%clk 0:00:57]} 6. Nxd4 {[%clk 0:02:07]}  d5 {[%clk 0:00:57]} 7. cxd5 {[%clk 0:02:06]}  Nxd5 {[%clk 0:00:58]} 8. Bb5 {[%clk 0:02:06]}  Nxc3 {[%clk 0:00:56]} 9. bxc3 {[%clk 0:02:04]}  Bd7 {[%clk 0:00:54]} 10. O-O {[%clk 0:02:02]}  Nxd4 {[%clk 0:00:52]} 11. Bxd7+ {[%clk 0:02:01]}  Qxd7 {[%clk 0:00:53]} 12. Qxd4 {[%clk 0:01:57]}  Qxd4 {[%clk 0:00:53]} 13. cxd4 {[%clk 0:01:57]}  Kd7 {[%clk 0:00:53]} 14. Rb1 {[%clk 0:01:56]}  b6 {[%clk 0:00:52]} 15. Bd2 {[%clk 0:01:50]}  e6 {[%clk 0:00:52]} 16. Rfc1 {[%clk 0:01:48]}  Bd6 {[%clk 0:00:51]} 17. Kf1 {[%clk 0:01:49]}  Rhc8 {[%clk 0:00:52]} 18. Ke2 {[%clk 0:01:46]}  Rxc1 {[%clk 0:00:52]} 19. Rxc1 {[%clk 0:01:46]}  Rc8 {[%clk 0:00:53]} 20. Rxc8 {[%clk 0:01:38]}  Kxc8 {[%clk 0:00:53]} 21. f4 {[%clk 0:01:37]}  f5 {[%clk 0:00:52]} 22. Kd3 {[%clk 0:01:33]}  Kd7 {[%clk 0:00:52]} 23. h3 {[%clk 0:01:33]}  Kc6 {[%clk 0:00:52]} 24. e4 {[%clk 0:01:29]}  fxe4+ {[%clk 0:00:50]} 25. Kxe4 {[%clk 0:01:28]}  h5 {[%clk 0:00:50]} 26. g4 {[%clk 0:01:29]}  hxg4 {[%clk 0:00:51]} 27. hxg4 {[%clk 0:01:28]}  b5 {[%clk 0:00:50]} 28. Be1 {[%clk 0:01:02]}  b4 {[%clk 0:00:47]} 29. Bh4 {[%clk 0:00:49]}  a5 {[%clk 0:00:44]} 30. Bd8 {[%clk 0:00:45]}  a4 {[%clk 0:00:42]} 31. Ba5 {[%clk 0:00:40]}  Kb5 {[%clk 0:00:41]} 32. Bd8 {[%clk 0:00:40]}  Kc4 {[%clk 0:00:40]} 33. d5 {[%clk 0:00:25]}  exd5+ {[%clk 0:00:39]} 34. Ke3 {[%clk 0:00:24]}  d4+ {[%clk 0:00:39]} 35. Ke4 {[%clk 0:00:20]}  b3 {[%clk 0:00:39]} 36. axb3+ {[%clk 0:00:20]}  axb3 {[%clk 0:00:40]} 37. Bf6 {[%clk 0:00:15]}  b2 {[%clk 0:00:41]} 38. Bxd4 {[%clk 0:00:16]}  b1=Q+ {[%clk 0:00:41]} 39. Kf3 {[%clk 0:00:16]} 0-1


[Site "https://www.chess.com"]

[Event "Titled Tuesday Blitz May 16 Early 2023"]
[White "Molina, Roberto Junio Brito"]
[Black "Goldin, Roman"]
[WhiteFideId "2109450"]
[BlackFideId "2803860"]
[WhiteElo "2376"]
[BlackElo "2312"]
[Result "1-0"]
[Round "10"]
[TimeControl "180+2"]
[Date "2023.05.16"]
[WhiteClock "0:01:31"]
[BlackClock "0:00:19"]

1. g4 {[%clk 0:03:00]}  g6 {[%clk 0:02:56]} 2. Bg2 {[%clk 0:03:00]}  Bg7 {[%clk 0:02:56]} 3. h3 {[%clk 0:03:00]}  e5 {[%clk 0:02:52]} 4. c4 {[%clk 0:02:59]}  Ne7 {[%clk 0:02:49]} 5. Nc3 {[%clk 0:02:58]}  c6 {[%clk 0:02:44]} 6. e3 {[%clk 0:02:51]}  O-O {[%clk 0:02:37]} 7. Nge2 {[%clk 0:02:49]}  d5 {[%clk 0:02:35]} 8. cxd5 {[%clk 0:02:45]}  cxd5 {[%clk 0:02:27]} 9. d4 {[%clk 0:02:45]}  e4 {[%clk 0:02:10]} 10. b3 {[%clk 0:02:43]}  f5 {[%clk 0:02:09]} 11. gxf5 {[%clk 0:02:41]}  Nxf5 {[%clk 0:02:09]} 12. Ba3 {[%clk 0:02:39]}  Rf7 {[%clk 0:01:55]} 13. Nf4 {[%clk 0:02:30]}  Qa5 {[%clk 0:01:19]} 14. Bb2 {[%clk 0:02:28]}  Nxd4 {[%clk 0:01:04]} 15. Nxd5 {[%clk 0:02:24]}  Nf3+ {[%clk 0:00:54]} 16. Bxf3 {[%clk 0:02:22]}  exf3 {[%clk 0:00:52]} 17. Qd2 {[%clk 0:02:15]}  Nc6 {[%clk 0:00:51]} 18. O-O-O {[%clk 0:02:11]}  Bf5 {[%clk 0:00:42]} 19. e4 {[%clk 0:02:10]}  Be6 {[%clk 0:00:30]} 20. Kb1 {[%clk 0:02:09]}  Rc8 {[%clk 0:00:24]} 21. Na4 {[%clk 0:02:01]}  Ne5 {[%clk 0:00:19]} 22. Qxa5 {[%clk 0:01:31]} 1-0


[Site "https://www.chess.com"]

[Event "Titled Tuesday Blitz May 16 Early 2023"]
[White "Gritsenko, Nikolai"]
[Black "Kleiman, Jake"]
[WhiteFideId "14112493"]
[BlackFideId "2020041"]
[WhiteElo "2389"]
[BlackElo "2546"]
[Result "0-1"]
[Round "10"]
[TimeControl "180+2"]
[Date "2023.05.16"]
[WhiteClock "0:00:00"]
[BlackClock "0:00:15"]

1. e4 {[%clk 0:03:00]}  e5 {[%clk 0:02:57]} 2. Nf3 {[%clk 0:03:00]}  Nc6 {[%clk 0:02:57]} 3. Bb5 {[%clk 0:03:01]}  a6 {[%clk 0:02:58]} 4. Bxc6 {[%clk 0:03:00]}  dxc6 {[%clk 0:02:58]} 5. d4 {[%clk 0:03:00]}  exd4 {[%clk 0:02:57]} 6. Qxd4 {[%clk 0:03:01]}  Qxd4 {[%clk 0:02:57]} 7. Nxd4 {[%clk 0:03:01]}  Bd7 {[%clk 0:02:55]} 8. Be3 {[%clk 0:03:01]}  O-O-O {[%clk 0:02:55]} 9. Nc3 {[%clk 0:03:00]}  Re8 {[%clk 0:02:43]} 10. f3 {[%clk 0:02:50]}  f5 {[%clk 0:02:37]} 11. Kf2 {[%clk 0:02:50]}  fxe4 {[%clk 0:02:35]} 12. Nxe4 {[%clk 0:02:49]}  Nf6 {[%clk 0:02:30]} 13. Nxf6 {[%clk 0:02:48]}  gxf6 {[%clk 0:02:30]} 14. Rhe1 {[%clk 0:02:42]}  Bd6 {[%clk 0:02:27]} 15. g3 {[%clk 0:02:11]}  h5 {[%clk 0:02:25]} 16. Bf4 {[%clk 0:02:02]}  Bc5 {[%clk 0:02:11]} 17. c3 {[%clk 0:01:59]}  a5 {[%clk 0:01:27]} 18. Re3 {[%clk 0:01:48]}  Reg8 {[%clk 0:01:12]} 19. h4 {[%clk 0:01:42]}  Rg7 {[%clk 0:01:07]} 20. Rae1 {[%clk 0:01:38]}  Rhg8 {[%clk 0:01:06]} 21. a3 {[%clk 0:01:21]}  a4 {[%clk 0:01:05]} 22. Re4 {[%clk 0:01:12]}  b6 {[%clk 0:01:00]} 23. Kg2 {[%clk 0:01:09]}  Kb7 {[%clk 0:00:57]} 24. Kh2 {[%clk 0:01:07]}  Rg6 {[%clk 0:00:54]} 25. Ne2 {[%clk 0:01:00]}  Bf5 {[%clk 0:00:47]} 26. Rxa4 {[%clk 0:00:57]}  b5 {[%clk 0:00:38]} 27. Rd4 {[%clk 0:00:54]}  Bxd4 {[%clk 0:00:38]} 28. Nxd4 {[%clk 0:00:54]}  Bd7 {[%clk 0:00:37]} 29. Nb3 {[%clk 0:00:49]}  Re8 {[%clk 0:00:34]} 30. Nc5+ {[%clk 0:00:46]}  Kc8 {[%clk 0:00:34]} 31. Rd1 {[%clk 0:00:44]}  Re2+ {[%clk 0:00:33]} 32. Kg1 {[%clk 0:00:42]}  Bh3 {[%clk 0:00:32]} 33. a4 {[%clk 0:00:35]}  Rg8 {[%clk 0:00:22]} 34. a5 {[%clk 0:00:32]}  Rxb2 {[%clk 0:00:19]} 35. a6 {[%clk 0:00:32]}  Ra2 {[%clk 0:00:20]} 36. Rd2 {[%clk 0:00:30]}  Rxd2 {[%clk 0:00:18]} 37. Bxd2 {[%clk 0:00:30]}  Kb8 {[%clk 0:00:18]} 38. Bf4 {[%clk 0:00:29]}  Bc8 {[%clk 0:00:16]} 39. Kf2 {[%clk 0:00:28]}  Rg7 {[%clk 0:00:17]} 40. Ke3 {[%clk 0:00:28]}  Ka7 {[%clk 0:00:17]} 41. Kd4 {[%clk 0:00:26]}  Bxa6 {[%clk 0:00:17]} 42. Ne6 {[%clk 0:00:26]}  Rd7+ {[%clk 0:00:18]} 43. Kc5 {[%clk 0:00:26]}  Kb7 {[%clk 0:00:18]} 44. g4 {[%clk 0:00:22]}  hxg4 {[%clk 0:00:17]} 45. fxg4 {[%clk 0:00:22]}  Rd3 {[%clk 0:00:18]} 46. Kb4 {[%clk 0:00:21]}  Rf3 {[%clk 0:00:17]} 47. h5 {[%clk 0:00:21]}  Rh3 {[%clk 0:00:17]} 48. h6 {[%clk 0:00:21]}  Kc8 {[%clk 0:00:17]} 49. Nf8 {[%clk 0:00:20]}  c5+ {[%clk 0:00:17]} 50. Kxc5 {[%clk 0:00:19]}  Bb7 {[%clk 0:00:18]} 51. Kd4 {[%clk 0:00:18]}  Bc6 {[%clk 0:00:17]} 52. g5 {[%clk 0:00:19]}  fxg5 {[%clk 0:00:17]} 53. Bxg5 {[%clk 0:00:19]}  Bd7 {[%clk 0:00:18]} 54. h7 {[%clk 0:00:19]}  Bf5 {[%clk 0:00:18]} 55. Kc5 {[%clk 0:00:18]}  Bxh7 {[%clk 0:00:17]} 56. Kxb5 {[%clk 0:00:19]}  Rh5 {[%clk 0:00:17]} 57. Nxh7 {[%clk 0:00:18]}  Rxh7 {[%clk 0:00:18]} 58. Be3 {[%clk 0:00:18]}  Kb7 {[%clk 0:00:17]} 59. Bd4 {[%clk 0:00:18]}  Rh5+ {[%clk 0:00:18]} 60. Kc4 {[%clk 0:00:18]}  Kc6 {[%clk 0:00:18]} 61. Kb4 {[%clk 0:00:18]}  Kd6 {[%clk 0:00:18]} 62. Kc4 {[%clk 0:00:19]}  c5 {[%clk 0:00:18]} 63. Be3 {[%clk 0:00:18]}  Kc6 {[%clk 0:00:19]} 64. Kd3 {[%clk 0:00:17]}  Rh4 {[%clk 0:00:19]} 65. c4 {[%clk 0:00:17]}  Rg4 {[%clk 0:00:19]} 66. Kc3 {[%clk 0:00:17]}  Rg3 {[%clk 0:00:18]} 67. Kd3 {[%clk 0:00:18]}  Kd6 {[%clk 0:00:18]} 68. Ke4 {[%clk 0:00:17]}  Rg4+ {[%clk 0:00:18]} 69. Kd3 {[%clk 0:00:16]}  Kc6 {[%clk 0:00:18]} 70. Kc3 {[%clk 0:00:16]}  Kb6 {[%clk 0:00:17]} 71. Kd3 {[%clk 0:00:16]}  Rh4 {[%clk 0:00:16]} 72. Kc3 {[%clk 0:00:16]}  Rh3 {[%clk 0:00:17]} 73. Kd3 {[%clk 0:00:16]}  Ka5 {[%clk 0:00:16]} 74. Ke4 {[%clk 0:00:00]}  Kb4 {[%clk 0:00:15]} 0-1


[Site "https://www.chess.com"]

[Event "Titled Tuesday Blitz May 16 Early 2023"]
[White "Itgelt, Khuyagtsogt"]
[Black "Shvedova, Alexandra"]
[WhiteFideId "4902912"]
[BlackFideId "54154782"]
[WhiteElo "2227"]
[BlackElo "1973"]
[Result "1-0"]
[Round "10"]
[TimeControl "180+2"]
[Date "2023.05.16"]
[WhiteClock "0:02:16"]
[BlackClock "0:01:55"]

1. d4 {[%clk 0:03:00]}  Nf6 {[%clk 0:02:17]} 2. Nf3 {[%clk 0:02:58]}  d5 {[%clk 0:02:17]} 3. g3 {[%clk 0:02:56]}  e6 {[%clk 0:02:16]} 4. Bg2 {[%clk 0:02:56]}  b5 {[%clk 0:02:17]} 5. O-O {[%clk 0:02:55]}  Bb7 {[%clk 0:02:17]} 6. Re1 {[%clk 0:02:52]}  Nbd7 {[%clk 0:02:16]} 7. a3 {[%clk 0:02:51]}  Bd6 {[%clk 0:02:16]} 8. Nc3 {[%clk 0:02:51]}  a6 {[%clk 0:02:15]} 9. Nd2 {[%clk 0:02:51]}  O-O {[%clk 0:02:14]} 10. e4 {[%clk 0:02:51]}  dxe4 {[%clk 0:02:13]} 11. Ndxe4 {[%clk 0:02:52]}  Be7 {[%clk 0:02:10]} 12. Nxf6+ {[%clk 0:02:51]}  Bxf6 {[%clk 0:02:04]} 13. Bxb7 {[%clk 0:02:52]}  Rb8 {[%clk 0:02:03]} 14. Bg2 {[%clk 0:02:48]}  Nb6 {[%clk 0:02:03]} 15. Be3 {[%clk 0:02:25]}  Nc4 {[%clk 0:02:02]} 16. b3 {[%clk 0:02:24]}  Nxe3 {[%clk 0:02:00]} 17. fxe3 {[%clk 0:02:24]}  c5 {[%clk 0:02:00]} 18. Ne4 {[%clk 0:02:24]}  cxd4 {[%clk 0:01:57]} 19. Nxf6+ {[%clk 0:02:24]}  Qxf6 {[%clk 0:01:55]} 20. Qxd4 {[%clk 0:02:16]} 1-0


[Site "https://www.chess.com"]

[Event "Titled Tuesday Blitz May 16 Early 2023"]
[White "Souleidis, Georgios"]
[Black "Estrada Nieto, Julian"]
[WhiteFideId "4206827"]
[BlackFideId "5101018"]
[WhiteElo "2401"]
[BlackElo "2161"]
[Result "1-0"]
[Round "10"]
[TimeControl "180+2"]
[Date "2023.05.16"]
[WhiteClock "0:00:47"]
[BlackClock "0:00:09"]

1. e4 {[%clk 0:03:00]}  e5 {[%clk 0:02:56]} 2. Nc3 {[%clk 0:03:00]}  Nf6 {[%clk 0:02:55]} 3. d4 {[%clk 0:03:00]}  exd4 {[%clk 0:02:53]} 4. Qxd4 {[%clk 0:03:00]}  Nc6 {[%clk 0:02:53]} 5. Qd3 {[%clk 0:03:01]}  Bb4 {[%clk 0:02:51]} 6. Bd2 {[%clk 0:03:00]}  O-O {[%clk 0:02:48]} 7. O-O-O {[%clk 0:03:00]}  Re8 {[%clk 0:02:41]} 8. Nge2 {[%clk 0:02:59]}  d6 {[%clk 0:02:28]} 9. Bg5 {[%clk 0:02:51]}  h6 {[%clk 0:02:18]} 10. Bxf6 {[%clk 0:02:50]}  Qxf6 {[%clk 0:02:19]} 11. Nd5 {[%clk 0:02:51]}  Qd8 {[%clk 0:02:18]} 12. Nxb4 {[%clk 0:02:50]}  Nxb4 {[%clk 0:02:17]} 13. Qd2 {[%clk 0:02:51]}  a5 {[%clk 0:02:01]} 14. Nc3 {[%clk 0:02:48]}  Be6 {[%clk 0:02:00]} 15. a3 {[%clk 0:02:45]}  Nc6 {[%clk 0:01:59]} 16. f4 {[%clk 0:02:41]}  Bg4 {[%clk 0:01:52]} 17. Re1 {[%clk 0:02:33]}  Bd7 {[%clk 0:01:51]} 18. Rg1 {[%clk 0:02:24]}  Rc8 {[%clk 0:01:28]} 19. g4 {[%clk 0:02:23]}  Qf6 {[%clk 0:01:26]} 20. g5 {[%clk 0:02:03]}  hxg5 {[%clk 0:01:25]} 21. Rxg5 {[%clk 0:02:03]}  Qd4 {[%clk 0:00:55]} 22. Bd3 {[%clk 0:02:01]}  f6 {[%clk 0:00:47]} 23. Rg3 {[%clk 0:01:47]}  f5 {[%clk 0:00:34]} 24. Reg1 {[%clk 0:01:24]}  Re7 {[%clk 0:00:34]} 25. exf5 {[%clk 0:01:20]}  Rf8 {[%clk 0:00:25]} 26. Qg2 {[%clk 0:01:04]}  Qxf4+ {[%clk 0:00:21]} 27. Kb1 {[%clk 0:01:04]}  Qe5 {[%clk 0:00:18]} 28. Nd5 {[%clk 0:00:56]}  Ref7 {[%clk 0:00:17]} 29. f6 {[%clk 0:00:51]}  Be6 {[%clk 0:00:11]} 30. Rxg7+ {[%clk 0:00:48]}  Rxg7 {[%clk 0:00:09]} 31. Qxg7# {[%clk 0:00:47]} 1-0


[Site "https://www.chess.com"]

[Event "Titled Tuesday Blitz May 16 Early 2023"]
[White "RobertDowneyJr0111"]
[Black "Krsnik Cohar, Ivan Vihor"]
[BlackFideId "14520044"]
[WhiteElo "2614"]
[BlackElo "2414"]
[Result "0-1"]
[Round "10"]
[TimeControl "180+2"]
[Date "2023.05.16"]
[WhiteClock "0:00:00"]
[BlackClock "0:00:02"]

1. e4 {[%clk 0:03:00]}  c5 {[%clk 0:02:58]} 2. Nf3 {[%clk 0:03:01]}  g6 {[%clk 0:02:59]} 3. d4 {[%clk 0:03:01]}  cxd4 {[%clk 0:02:59]} 4. Nxd4 {[%clk 0:03:01]}  Nf6 {[%clk 0:02:59]} 5. Nc3 {[%clk 0:02:58]}  Nc6 {[%clk 0:02:58]} 6. Nxc6 {[%clk 0:02:57]}  bxc6 {[%clk 0:02:58]} 7. e5 {[%clk 0:02:57]}  Nh5 {[%clk 0:02:58]} 8. Bc4 {[%clk 0:02:54]}  Ng7 {[%clk 0:02:58]} 9. O-O {[%clk 0:02:53]}  Ne6 {[%clk 0:02:58]} 10. f4 {[%clk 0:02:50]}  d5 {[%clk 0:02:58]} 11. exd6 {[%clk 0:02:47]}  Qxd6 {[%clk 0:02:58]} 12. Be3 {[%clk 0:02:22]}  Bg7 {[%clk 0:02:58]} 13. Ne4 {[%clk 0:02:17]}  Qb4 {[%clk 0:02:42]} 14. Qd3 {[%clk 0:01:55]}  O-O {[%clk 0:02:36]} 15. c3 {[%clk 0:01:48]}  Qxb2 {[%clk 0:02:24]} 16. Rab1 {[%clk 0:01:45]}  Qa3 {[%clk 0:02:24]} 17. f5 {[%clk 0:01:45]}  gxf5 {[%clk 0:02:19]} 18. Ng3 {[%clk 0:01:45]}  f4 {[%clk 0:01:54]} 19. Bxf4 {[%clk 0:01:36]}  Nxf4 {[%clk 0:01:54]} 20. Rxf4 {[%clk 0:01:37]}  Qxc3 {[%clk 0:01:49]} 21. Qe4 {[%clk 0:00:50]}  e5 {[%clk 0:01:41]} 22. Rxf7 {[%clk 0:00:24]}  Rxf7 {[%clk 0:01:29]} 23. Rf1 {[%clk 0:00:24]}  Qd4+ {[%clk 0:00:50]} 24. Qxd4 {[%clk 0:00:24]}  exd4 {[%clk 0:00:50]} 25. Rxf7 {[%clk 0:00:24]}  Kh8 {[%clk 0:00:51]} 26. Nh5 {[%clk 0:00:21]}  Bh6 {[%clk 0:00:32]} 27. Bd3 {[%clk 0:00:10]}  Kg8 {[%clk 0:00:25]} 28. Rxh7 {[%clk 0:00:09]}  Be3+ {[%clk 0:00:14]} 29. Kh1 {[%clk 0:00:09]}  Rb8 {[%clk 0:00:12]} 30. Nf6+ {[%clk 0:00:07]}  Kf8 {[%clk 0:00:12]} 31. h3 {[%clk 0:00:03]}  Bg5 {[%clk 0:00:07]} 32. Rh8+ {[%clk 0:00:01]}  Kg7 {[%clk 0:00:06]} 33. Rg8+ {[%clk 0:00:01]}  Kxf6 {[%clk 0:00:06]} 34. Rg6+ {[%clk 0:00:02]}  Ke7 {[%clk 0:00:04]} 35. Rxg5 {[%clk 0:00:03]}  Be6 {[%clk 0:00:04]} 36. Ra5 {[%clk 0:00:03]}  Rb7 {[%clk 0:00:02]} 37. g4 {[%clk 0:00:02]}  Kd6 {[%clk 0:00:03]} 38. Kg2 {[%clk 0:00:03]}  Rb2+ {[%clk 0:00:03]} 39. Kg3 {[%clk 0:00:03]}  Rd2 {[%clk 0:00:03]} 40. Be4 {[%clk 0:00:02]}  Re2 {[%clk 0:00:03]} 41. Kf4 {[%clk 0:00:02]}  Rf2+ {[%clk 0:00:02]} 42. Kg5 {[%clk 0:00:02]}  Re2 {[%clk 0:00:03]} 43. Bd3 {[%clk 0:00:02]}  Re3 {[%clk 0:00:03]} 44. Bf5 {[%clk 0:00:00]}  Rxh3 {[%clk 0:00:02]} 0-1


[Site "https://www.chess.com"]

[Event "Titled Tuesday Blitz May 16 Early 2023"]
[White "wqws"]
[Black "Yurasova, Daria"]
[BlackFideId "34146919"]
[WhiteElo "2599"]
[BlackElo "2109"]
[Result "1-0"]
[Round "10"]
[TimeControl "180+2"]
[Date "2023.05.16"]
[WhiteClock "0:00:41"]
[BlackClock "0:00:01"]

1. e4 {[%clk 0:02:57]}  e5 {[%clk 0:03:00]} 2. f4 {[%clk 0:02:56]}  exf4 {[%clk 0:02:59]} 3. Nf3 {[%clk 0:02:56]}  Nf6 {[%clk 0:02:58]} 4. Nc3 {[%clk 0:02:55]}  Bb4 {[%clk 0:02:58]} 5. e5 {[%clk 0:02:53]}  Qe7 {[%clk 0:02:43]} 6. Be2 {[%clk 0:02:51]}  Ng4 {[%clk 0:02:33]} 7. O-O {[%clk 0:02:47]}  Nxe5 {[%clk 0:02:22]} 8. Nxe5 {[%clk 0:02:47]}  Qxe5 {[%clk 0:02:22]} 9. d4 {[%clk 0:02:47]}  Qa5 {[%clk 0:02:10]} 10. Bxf4 {[%clk 0:02:39]}  Bxc3 {[%clk 0:02:08]} 11. bxc3 {[%clk 0:02:39]}  O-O {[%clk 0:02:08]} 12. Bd3 {[%clk 0:02:39]}  Nc6 {[%clk 0:02:02]} 13. d5 {[%clk 0:02:38]}  Ne7 {[%clk 0:01:59]} 14. c4 {[%clk 0:02:35]}  Ng6 {[%clk 0:01:58]} 15. Bg3 {[%clk 0:02:34]}  d6 {[%clk 0:01:55]} 16. h4 {[%clk 0:02:33]}  Qc3 {[%clk 0:01:49]} 17. h5 {[%clk 0:02:33]}  Ne5 {[%clk 0:01:50]} 18. h6 {[%clk 0:02:30]}  Nxd3 {[%clk 0:01:37]} 19. hxg7 {[%clk 0:02:21]}  Re8 {[%clk 0:01:14]} 20. Qxd3 {[%clk 0:02:17]}  Qxd3 {[%clk 0:01:12]} 21. cxd3 {[%clk 0:02:18]}  Bg4 {[%clk 0:01:12]} 22. Bf4 {[%clk 0:01:55]}  Be2 {[%clk 0:01:10]} 23. Rfb1 {[%clk 0:01:51]}  b6 {[%clk 0:01:06]} 24. Rb3 {[%clk 0:01:51]}  a5 {[%clk 0:01:04]} 25. Kf2 {[%clk 0:01:47]}  Bh5 {[%clk 0:01:04]} 26. Be3 {[%clk 0:01:44]}  Kxg7 {[%clk 0:00:56]} 27. Rh1 {[%clk 0:01:40]}  Bg6 {[%clk 0:00:56]} 28. Bd4+ {[%clk 0:01:36]}  Kg8 {[%clk 0:00:55]} 29. Rh3 {[%clk 0:01:31]}  f5 {[%clk 0:00:46]} 30. Rf3 {[%clk 0:01:26]}  Re7 {[%clk 0:00:45]} 31. Bf6 {[%clk 0:01:23]}  Rf7 {[%clk 0:00:45]} 32. Bg5 {[%clk 0:01:21]}  Kg7 {[%clk 0:00:42]} 33. d4 {[%clk 0:01:20]}  Re8 {[%clk 0:00:35]} 34. Rbe3 {[%clk 0:01:20]}  Re4 {[%clk 0:00:31]} 35. Rxe4 {[%clk 0:01:15]}  fxe4 {[%clk 0:00:30]} 36. Rxf7+ {[%clk 0:01:16]}  Kxf7 {[%clk 0:00:31]} 37. Bd8 {[%clk 0:01:17]}  Ke8 {[%clk 0:00:20]} 38. Bxc7 {[%clk 0:01:16]}  Kd7 {[%clk 0:00:20]} 39. Bxb6 {[%clk 0:01:17]}  a4 {[%clk 0:00:21]} 40. Ke3 {[%clk 0:01:17]}  h5 {[%clk 0:00:20]} 41. a3 {[%clk 0:01:12]}  Bf5 {[%clk 0:00:17]} 42. c5 {[%clk 0:01:11]}  Bg6 {[%clk 0:00:17]} 43. c6+ {[%clk 0:01:09]}  Kc8 {[%clk 0:00:17]} 44. Kf4 {[%clk 0:01:09]}  Bh7 {[%clk 0:00:17]} 45. Ba5 {[%clk 0:01:08]}  Bg6 {[%clk 0:00:16]} 46. Bb4 {[%clk 0:01:00]}  Kc7 {[%clk 0:00:16]} 47. Be1 {[%clk 0:01:00]}  Bh7 {[%clk 0:00:16]} 48. Ba5+ {[%clk 0:00:54]}  Kc8 {[%clk 0:00:16]} 49. Kg5 {[%clk 0:00:53]}  Bg8 {[%clk 0:00:16]} 50. Kxh5 {[%clk 0:00:53]}  Bxd5 {[%clk 0:00:16]} 51. c7 {[%clk 0:00:54]}  e3 {[%clk 0:00:14]} 52. g4 {[%clk 0:00:53]}  e2 {[%clk 0:00:12]} 53. g5 {[%clk 0:00:53]}  e1=Q {[%clk 0:00:12]} 54. Bxe1 {[%clk 0:00:52]}  Kxc7 {[%clk 0:00:13]} 55. Bb4 {[%clk 0:00:47]}  Kd7 {[%clk 0:00:11]} 56. g6 {[%clk 0:00:45]}  Ke7 {[%clk 0:00:03]} 57. Kh6 {[%clk 0:00:42]}  Kf6 {[%clk 0:00:02]} 58. Bxd6 {[%clk 0:00:42]}  Bg8 {[%clk 0:00:03]} 59. Be5+ {[%clk 0:00:41]}  Ke7 {[%clk 0:00:01]} 60. Kg7 {[%clk 0:00:41]}  Bd5 {[%clk 0:00:02]} 61. Kh8 {[%clk 0:00:41]}  Kd7 {[%clk 0:00:01]} 62. g7 {[%clk 0:00:41]} 1-0


[Site "https://www.chess.com"]